Cogmind - Beta 10.2 @@@ ROGUE MODE // 2021.04.03 @ 14:09:20 Player: derk Result: Destroyed by S-27 Virus with Autogun Performance ------------- Evolutions (6) 3000 Regions Visited (25) 5000 Robots Destroyed (310) 1550 Value Destroyed (12189) 12189 Prototype IDs (32) 640 Alien Tech Used (2) 400 Bonus (3964) 3964 TOTAL SCORE: 26743 Bonus ------- High Alert Combat Kills 1118 Follower Combat Kills 638 Entered Garrisons 800 Used RIF Installer 1500 Met Zhirov 300 Friendly Fire -392 Cogmind --------- Core Integrity 0/1150 Matter 300/300 Energy 99/100 System Corruption 8% Temperature Cool (0) Movement Core (50) Location -4/Upper Caves Parts ------- > --- POWER (2) -------- (None) > --- PROPULSION (4) --- (None) > --- UTILITY (11) ----- Improved Target Analyzer Improved Target Analyzer > --- WEAPON (2) ------- (None) > --- INVENTORY (4) ---- Wheel Improved Remote Force Field High-powered Shock Rifle Improved Remote Datajack Peak State ------------ > --- POWER ------------ Fission Core Neutrino Core > --- PROPULSION ------- Antigrav System Improved Linear Gravjet Improved Linear Gravjet Improved Linear Gravjet > --- UTILITY ---------- Improved Coolant Injector Compact Battery Improved Matter Compressor Improved Target Analyzer Improved Target Analyzer Advanced Force Field Improved Remote Force Field Improved Remote Force Field Hacking Suite Advanced Trap Extractor > --- WEAPON ----------- Hardcell Cannon Makeshift Sword > --- INVENTORY -------- Medium Treads Improved Linear Gravjet Improved Linear Gravjet Improved Remote Datajack [Rating: 110] Favorites ----------- Power Light Nuclear Core Engine Light Ion Engine Power Core Light Nuclear Core Reactor Heavy Antimatter Reactor Propulsion Combat Airjet Treads Armored Treads Leg Advanced Myomer Leg Wheel Wheel Hover Unit Combat Airjet Flight Unit Nuclear Pulse Thruster Utility Hacking Suite Device Improved Heat Sink Storage High-capacity Storage Unit Processor Advanced Signal Interpreter Hackware Hacking Suite Protection Improved Light Armor Plating Weapon Enhanced Autogun Energy Gun EM Pulse Gun Energy Cannon Long-range Proton Cannon Ballistic Gun Enhanced Autogun Ballistic Cannon Hardcell Cannon Launcher Mini Grenade Launcher Special Weapon Remote Datajack Impact Weapon Power Maul Slashing Weapon Makeshift Sword Piercing Weapon Heavy Pick Special Melee Weapon Datajack Build | -11 -10 -10 -10 -9 -8 -8 -8 -7 -7 -7 -7 -6 -6 -6 -6 -6 -6 -5 -5 -5 -5 -4 -4 -4 -4 ------- Run | Scr Mat Min Exi Min Mat Gar Mat Fac Was Fac Gar Fac Was Fac Gar Fac Gar Fac Upp Upp Zhi Pro Fac Upp Upp Slots Evolved 12 | . . . . . 4 . . 2 . . . 2 . . . . . 2 . . . . 2 . . Power 1 | . . . . . . . . . . . . . . . . . . 1 . . . . . . . Propulsion 2 | . . . . . 1 . . 1 . . . . . . . . . . . . . . . . . Utility 9 | . . . . . 3 . . 1 . . . 2 . . . . . 1 . . . . 2 . . Weapon . | . . . . . . . . . . . . . . . . . . . . . . . . . . Parts Attached 388 | 7 11 3 3 3 30 9 17 7 10 17 18 36 4 18 10 17 8 53 17 1 11 11 40 26 1 Power 42 | 1 3 1 . . 4 1 1 . 1 2 1 4 . 3 1 3 1 6 . . 2 1 3 3 . Engine 21 | 1 3 1 . . 2 . 1 . . 1 . 1 . 2 1 3 . 3 . . 1 . . 1 . Core 18 | . . . . . 2 1 . . 1 1 1 3 . . . . 1 3 . . . 1 2 2 . Reactor 3 | . . . . . . . . . . . . . . 1 . . . . . . 1 . 1 . . Propulsion 77 | 2 2 1 . 1 8 3 1 2 3 5 . 2 . 6 1 8 . 6 2 . 3 . 10 11 . Treads 19 | . 2 1 . 1 8 3 1 2 . . . . . . . . . . . . . . . 1 . Leg 4 | . . . . . . . . . . . . . . 1 . . . . . . 3 . . . . Wheel 8 | 2 . . . . . . . . . . . . . 1 . 4 . . . . . . . 1 . Hover 41 | . . . . . . . . . 3 5 . 2 . . . 4 . 6 2 . . . 10 9 . Flight 5 | . . . . . . . . . . . . . . 4 1 . . . . . . . . . . Utility 124 | 2 2 . 3 . 7 . 7 5 5 2 8 15 1 6 4 5 2 20 6 1 5 2 7 8 1 Device 37 | . . . . . . . . 1 . 1 1 6 . 2 . 2 . 10 2 1 3 . 2 5 1 Storage 22 | 2 2 . 3 . 1 . 1 2 2 . . . . . . 1 . 2 1 . 2 . 2 1 . Processor 4 | . . . . . . . . 1 . . . . . . . . . 1 . . . . 1 1 . Hackware 25 | . . . . . . . . . 3 . 3 3 1 2 4 1 1 3 1 . . 1 2 . . Protection 36 | . . . . . 6 . 6 1 . 1 4 6 . 2 . 1 1 4 2 . . 1 . 1 . Artifact . | . . . . . . . . . . . . . . . . . . . . . . . . . . Weapon 145 | 2 4 1 . 2 11 5 8 . 1 8 9 15 3 3 4 1 5 21 9 . 1 8 20 4 . Energy Gun 13 | 1 2 1 . . 4 . 1 . . . . . . . . . . 1 . . . . 3 . . Energy Cannon 20 | . . . . . . 1 2 . . 1 . . . . . . . 5 3 . . 3 5 . . Ballistic Gun 33 | 1 1 . . . 4 2 4 . 1 1 1 2 . . . . 3 8 1 . 1 . 3 . . Ballistic Cannon 8 | . . . . . . . . . . 1 2 4 . . . . . . . . . . 1 . . Launcher 28 | . 1 . . 1 2 2 1 . . 2 2 2 . 3 2 . 1 . 3 . . 4 2 . . Special Weapon 16 | . . . . . . . . . . 1 2 6 2 . . . . 3 . . . . 1 1 . Impact Weapon 2 | . . . . . . . . . . 1 . . . . . . . . . . . . . 1 . Slashing Weapon 17 | . . . . 1 1 . . . . 1 2 1 . . . . . 1 2 . . 1 5 2 . Piercing Weapon 3 | . . . . . . . . . . . . . . . 2 . 1 . . . . . . . . Special Melee Weapon 5 | . . . . . . . . . . . . . 1 . . 1 . 3 . . . . . . . Unidentified Prototypes 21 | . . . . . 3 . 4 . . 1 . . . 3 . . . 2 . . 5 . 3 . . Parts Lost 109 | . 2 . . . 2 . . . . 3 2 15 3 . 6 . 5 18 6 . . 1 24 12 10 Power 16 | . . . . . 1 . . . . . 1 2 1 . 1 . . 3 . . . . 4 3 . Propulsion 26 | . . . . . . . . . . 1 . 3 1 . 3 . . 3 1 . . . 5 5 4 Utility 36 | . . . . . . . . . . . . 6 1 . 2 . 3 6 3 . . . 8 3 4 Weapon 31 | . 2 . . . 1 . . . . 2 1 4 . . . . 2 6 2 . . 1 7 1 2 Highest Loss Streak 14 | . 2 . . . 1 . . . . 2 2 7 2 . 6 . 3 9 5 . . 1 14 4 10 Average Slot Usage (%) 88 | . 98 100 90 85 88 89 89 90 99 99 99 86 28 48 61 85 92 87 86 93 93 97 84 75 64 Engine 4 | . 14 14 14 14 5 . 8 7 . 1 1 . . 3 4 3 5 3 5 5 2 . . 1 . Core 3 | . . . . . 3 9 . . 7 5 4 4 2 . . . . 5 5 5 5 5 4 4 . Treads 11 | . 26 28 28 28 26 26 27 30 7 4 . . . . . . . . . . . . . . . Leg 1 | . . . . . . . . . . . . . . 1 . . . . . . 8 17 9 . . Hover 9 | . . . . . . . . . 21 25 30 22 7 . . 10 26 18 17 17 10 5 9 18 13 Device 5 | . . . . . . . . 4 7 6 . 8 7 7 5 3 . 11 11 16 13 11 8 13 10 Storage 13 | . 28 28 19 14 17 18 18 17 11 15 15 12 2 . . 2 6 8 5 5 9 8 6 8 9 Processor 2 | . . . . . . . . 4 7 7 7 6 4 . . . . 1 . . . . 3 9 10 Hackware 10 | . . . . . . . . . 18 15 12 10 2 11 21 34 35 16 22 23 23 26 26 5 4 Protection 6 | . . . . . 17 18 17 9 . . 8 9 . 2 4 4 3 5 3 5 5 2 1 . . Energy Gun 2 | . 12 13 14 . 3 . . . . . . . . . . . . . . . . . . . . Energy Cannon 1 | . . . . . . . 4 7 . . . . . . . . . 2 5 . . 4 3 . . Ballistic Gun 5 | . 14 14 14 4 4 17 13 7 14 10 5 1 . . . . 5 3 . . 1 . . . . Launcher 1 | . . . . 14 5 . . . . . . . . 2 . . 2 . 1 5 . . . . . Slashing Weapon 2 | . . . . 9 4 . . . . . 4 3 . . . . . . 3 5 5 4 4 4 4 Naked Turns 50 | . . . . . . . . . . . . . 50 . . . . . . . . . . . . Heaviest Build 147 | 16 42 42 87 87 137 137 147 144 76 89 93 130 44 30 23 31 35 74 58 52 65 68 64 91 51 Greatest Support 91 | 26 40 40 40 40 60 64 64 86 69 91 91 91 47 28 24 88 88 88 66 66 90 90 90 55 26 Greatest Overweight (x) 3 | . 1 1 2 2 2 3 2 1 1 1 1 2 . 2 . 1 . 2 . . 1 2 3 3 3 Average Overweight (x) . | . . . 1 2 2 2 1 . . . . . . . . . . . . . . . . . . Largest Inventory Capacity 52 | 8 16 16 24 24 32 32 52 40 28 20 20 20 12 4 4 8 8 18 10 10 10 10 10 4 4 Average Capacity 18 | 6 14 16 20 24 31 32 32 30 16 20 20 19 7 4 4 5 8 12 10 10 10 10 9 4 4 Most Carried 32 | 7 16 16 22 24 32 32 32 32 23 20 20 20 12 4 4 8 8 14 10 9 10 10 10 4 4 Average Carried 16 | 4 11 14 18 23 30 31 31 28 13 19 19 16 6 3 3 4 7 11 9 8 9 9 8 3 3 Final Capacity 32 | 8 16 16 24 24 32 32 32 28 20 20 20 12 4 4 4 8 8 10 10 10 10 10 4 4 4 Final Carried 32 | 7 14 15 22 24 32 32 32 24 19 20 20 12 4 4 4 7 8 10 8 9 10 9 4 4 4 Class Distribution -------------------- 42% | Hauler-Mutant 18% | Hacker-Mutant 14% | Mutant 12% | Bothacker-Mutant 9% | Scavenger-Mutant Dominant Class ---------------- Mutant | -10/Materials Mutant | -10/Mines Hauler-Mutant | -10/Exiles Hauler-Mutant | -9/Mines Hauler-Mutant | -8/Materials Hauler-Mutant | -8/Garrison Hauler-Mutant | -8/Materials Hauler-Mutant | -7/Factory Hauler-Mutant | -7/Waste Hauler-Mutant | -7/Factory Bothacker-Mutant | -7/Garrison Hauler-Mutant | -6/Factory Mutant | -6/Waste Hacker-Mutant | -6/Factory Mutant | -6/Garrison Bothacker-Mutant | -6/Factory Bothacker-Mutant | -6/Garrison Scavenger-Mutant | -5/Factory Hacker-Mutant | -5/Upper Caves Hacker-Mutant | -5/Upper Caves Hacker-Mutant | -5/Zhirov Hacker-Mutant | -4/Proximity Caves Hacker-Mutant | -4/Factory Scavenger-Mutant | -4/Upper Caves Scavenger-Mutant | -4/Upper Caves Resources | -11 -10 -10 -10 -9 -8 -8 -8 -7 -7 -7 -7 -6 -6 -6 -6 -6 -6 -5 -5 -5 -5 -4 -4 -4 -4 ----------- Run | Scr Mat Min Exi Min Mat Gar Mat Fac Was Fac Gar Fac Was Fac Gar Fac Gar Fac Upp Upp Zhi Pro Fac Upp Upp Matter Collected 9496 | 276 183 110 30 146 699 408 399 51 156 184 908 856 68 29 703 181 698 1008 354 29 310 488 383 748 91 Remotely 10 | . . . . . . . . . . . . . . . . . . . 10 . . . . . . Salvage Created 12277 | 100 437 233 . 124 2024 511 785 121 . 285 522 1951 . 87 65 435 688 1174 529 . 107 481 773 772 73 Parts 604 | 2 17 9 . 14 116 24 53 10 . 13 26 97 . 6 7 14 33 58 12 . 3 19 45 22 4 Haulers Intercepted 10 | . 1 . . . 4 . 3 . . . . 1 . . . . . . . . . . 1 . . Recyclers Shooed 7 | . 1 . . . 1 . . 2 . . . 3 . . . . . . . . . . . . . Parts Field Recycled 9 | . . . . . . . . . . . . . . . . . . 9 . . . . . . . Retrieved Matter 205 | . . . . . . . . . . . . . . . . . . 205 . . . . . . . Parts Self-Destructed 27 | . . . . . . . . . . . . . . . . . . . 6 . 1 7 . 10 3 Prevented 12 | . . . . . . . . . . . . . . . . . . . 4 . . 6 . 2 . Kills | -11 -10 -10 -10 -9 -8 -8 -8 -7 -7 -7 -7 -6 -6 -6 -6 -6 -6 -5 -5 -5 -5 -4 -4 -4 -4 ------- Run | Scr Mat Min Exi Min Mat Gar Mat Fac Was Fac Gar Fac Was Fac Gar Fac Gar Fac Upp Upp Zhi Pro Fac Upp Upp Combat Hostiles Destroyed 261 | . 5 19 . 6 39 14 13 2 . 7 22 18 . 8 6 . 27 17 9 . . 17 20 10 2 Melee 18 | . . . . . 9 . . . . . 2 5 . . . . . . . . . . 1 . 1 Guns 70 | . 4 3 . . 17 9 8 1 . 1 5 . . . . . 8 9 . . . . 5 . . Cannons 28 | . . . . . . . 2 1 . 2 1 4 . . . . . 2 1 . . 2 3 9 1 AOE 129 | . 1 16 . 6 13 5 3 . . 4 14 3 . 8 6 . 19 2 8 . . 12 8 1 . Classes Destroyed 16 | 1 3 2 . 2 5 . . . . 1 . 2 . . . . . . . . . . . . . Worker 14 | . . . . 1 4 . 1 1 . . . 4 . . . 2 . 1 . . . . . . . Builder 9 | . . . . . 1 . 1 . . . . 7 . . . . . . . . . . . . . Tunneler 7 | . . . . 2 2 . . . . . . . . . . . . 1 . . . . 2 . . Hauler 10 | . 1 . . . 4 . 3 . . . . 1 . . . . . . . . . . 1 . . Recycler 13 | 1 1 1 . . 1 . . . . 1 . 3 . . . 3 . 2 . . . . . . . Mechanic 1 | . . . . . 1 . . . . . . . . . . . . . . . . . . . . Watcher 8 | . 3 . . . 1 . 1 . . . . 1 . . . . . 2 . . . . . . . Swarmer 95 | . . 3 . 4 6 3 . . . 3 7 . . 6 6 . 22 8 . . . 10 12 4 1 Grunt 91 | . 5 . . 2 23 8 8 1 . 2 13 14 . . . . 3 1 6 . . 2 1 2 . Brawler 4 | . . . . . 1 . . . . . 1 . . . . . 1 . 1 . . . . . . Duelist 2 | . . . . . . . . . . . . . . . . . . . . . . 2 . . . Sentry 26 | . . . . . 8 3 4 1 . 2 1 1 . . . . 1 2 . . . 1 1 1 . Specialist 1 | . . . . . . . . . . . . 1 . . . . . . . . . . . . . Hunter 12 | . . . . . 1 . 1 . . . . 3 . 2 . . . 2 . . . 2 1 . . Programmer 16 | . . . . . . . . . . . . 1 . . . . . 4 2 . . . 5 3 1 Packrat 1 | . . . . . . . . . . . . . . . . . . . 1 . . . . . . Assembled 16 | . . 16 . . . . . . . . . . . . . . . . . . . . . . . Butcher 1 | . . . . . . . . . . 1 . . . . . . . . . . . . . . . Best Kill Streak 16 | 1 3 16 . 5 6 5 4 1 . 5 9 9 . 4 3 3 12 5 5 . . 5 12 3 1 Combat Bots Only 16 | . 2 16 . 4 5 5 4 1 . 5 9 4 . 4 3 . 12 4 5 . . 5 12 3 1 Max Kills in Single Turn 5 | 1 1 5 . 3 3 2 3 1 . 1 3 5 . 3 3 1 3 2 2 . . 4 4 1 1 Gunslinging 1 | . . . . . 1 . . . . . . . . . . . 1 . . . . . . . . Exploded 5 | . 1 5 . 3 3 2 1 . . 1 3 2 . 3 3 . 3 2 2 . . 4 4 1 . Melee 1 | . . . . . 1 . . . . . 1 1 . . . . . . . . . . 1 . 1 Uniques/NPCs Destroyed . | . . . . . . . . . . . . . . . . . . . . . . . . . . Combat | -11 -10 -10 -10 -9 -8 -8 -8 -7 -7 -7 -7 -6 -6 -6 -6 -6 -6 -5 -5 -5 -5 -4 -4 -4 -4 -------- Run | Scr Mat Min Exi Min Mat Gar Mat Fac Was Fac Gar Fac Was Fac Gar Fac Gar Fac Upp Upp Zhi Pro Fac Upp Upp Damage Taken 19665 | . 460 223 . 238 1519 904 971 195 . 411 941 2676 149 317 644 . 1240 2384 775 . . 683 2905 1436 594 Core 2931 | . 85 56 . 29 127 8 161 . . 43 163 248 98 64 270 . 152 247 18 . . 54 611 249 248 Absorbed by Shields 230 | . . . . . . . . . . . . . . . 18 . . . . . . . . 152 60 Core Remaining (%) 53 | 100 . . . 32 . . 46 . . . 70 . . . . . 2 . . . . 68 . . . Volleys Fired 755 | 6 43 18 . 10 74 46 49 13 . 16 59 81 . 10 3 . 37 106 28 . . 35 58 58 5 Largest 2 | 2 2 1 . 1 2 2 2 2 . 2 1 1 . 1 1 . 2 2 1 . . 1 2 1 1 Hottest 140 | 60 60 40 . 30 90 85 88 55 . 57 57 57 . 39 39 . 51 104 90 . . 81 140 65 65 Shots Fired 1012 | 12 86 18 . 10 133 85 87 22 . 18 59 81 . 10 3 . 53 141 27 . . 35 64 62 6 Gun 541 | 12 86 13 . 2 118 76 52 9 . 4 26 . . . . . 32 90 1 . . . 20 . . Cannon 279 | . . . . . . 3 33 13 . 4 12 36 . . . . . 40 17 . . 24 36 55 6 Launcher 132 | . . 5 . 8 15 6 2 . . 7 15 16 . 10 3 . 21 . 9 . . 11 4 . . Special 60 | . . . . . . . . . . 3 6 29 . . . . . 11 . . . . 4 7 . Kinetic 546 | 6 43 . . 2 80 76 52 9 . 8 38 36 . . . . 32 90 1 . . . 12 55 6 Thermal 102 | . . . . . . 3 23 13 . . . . . . . . . 17 9 . . . 37 . . Explosive 114 | . . 5 . 8 15 6 2 . . 5 15 . . 10 3 . 21 . 9 . . 11 4 . . Electromagnetic 193 | 6 43 13 . . 38 . 10 . . 2 . 16 . . . . . 26 8 . . 24 7 . . Robot Hit Streak 26 | 4 13 4 . 4 11 14 26 15 . 19 5 6 . 1 . . 5 13 6 . . 5 10 7 3 Robot Miss Streak 9 | 1 5 1 . 2 3 2 3 1 . 2 3 3 . 1 . . 5 9 1 . . 4 5 5 1 Penetration Max 2 | . . . . . 1 . . . . . . 2 . . . . . 1 . . . . . . . Secondary Targets 7 | . 1 . . . 3 . . . . . . . . . . . 3 . . . . . . . . Max Gunslinging Chain 1 | . 1 . . . 1 . . . . . . . . . . . 1 . . . . . . . . Shots Hit Robots 750 | 10 54 12 . 7 113 49 63 18 . 11 31 70 . 1 . 7 37 108 14 . 5 15 60 59 6 Core Hits 552 | 2 17 38 . 14 81 27 31 5 . 21 44 50 . 15 6 5 57 38 23 . 1 28 26 21 2 Critical Hits 53 | 1 1 . . . 1 2 1 . . 2 5 19 . . . 1 . 9 . . . . 5 6 . Critical Kills 22 | . . . . . . 1 1 . . 2 . 8 . . . 1 . 4 . . . . 2 3 . Critical Parts Destroyed 28 | 1 1 . . . 1 1 . . . . 4 9 . . . . . 5 . . . . 3 3 . Melee Attacks 212 | . . . . 15 35 . . . . 1 8 40 . . 2 13 9 18 1 . 5 . 29 34 2 Impact . | . . . . . . . . . . . . . . . . . . . . . . . . . . Slashing 171 | . . . . 15 35 . . . . 1 8 40 . . . . . 1 1 . 5 . 29 34 2 Piercing 22 | . . . . . . . . . . . . . . . 2 11 9 . . . . . . . . Sneak Attacks 32 | . . . . 2 7 . . . . . . 5 . . . 7 . 7 . . . . 3 . 1 Combat Hostiles . | . . . . . . . . . . . . . . . . . . . . . . . . . . Follow-up Attacks . | . . . . . . . . . . . . . . . . . . . . . . . . . . Damage Inflicted 39575 | 91 844 1027 . 1089 4467 1443 1807 415 . 964 2279 3927 . 991 561 533 3138 2689 2133 . 654 2274 3450 4509 290 Guns 6514 | 91 732 125 . 12 1637 914 727 119 . 62 262 . . . . . 364 1167 26 . . . 276 . . Cannons 6934 | . . . . . . 47 565 296 . 100 156 740 . . . . . 1112 598 . . 452 1276 1432 160 Explosions 16946 | . 112 902 . 839 1431 482 515 . . 802 1789 2029 . 991 561 . 2172 170 1466 . . 1822 863 . . Melee 9127 | . . . . 238 1399 . . . . . 72 1158 . . . 533 602 186 43 . 654 . 1035 3077 130 Ramming . | . . . . . . . . . . . . . . . . . . . . . . . . . . Kinetic 7795 | 41 252 . . 12 1126 914 727 119 . 162 418 740 . . . . 364 1167 26 . . . 135 1432 160 Thermal 3450 | . 112 . . 46 154 47 432 296 . . . 28 . . . . . 715 386 . . 54 1180 . . Explosive 14340 | . . 902 . 793 1277 482 515 . . 732 1789 29 . 991 561 . 2172 . 1466 . . 1768 863 . . Electromagnetic 4863 | 50 480 125 . . 511 . 133 . . 70 . 1972 . . . . . 621 212 . . 452 237 . . Impact . | . . . . . . . . . . . . . . . . . . . . . . . . . . Slashing 7992 | . . . . 238 1399 . . . . . 72 1158 . . . . . 186 43 . 654 . 1035 3077 130 Piercing 1135 | . . . . . . . . . . . . . . . . 533 602 . . . . . . . . Highest Corruption 13 | . . . . . . . 1 2 2 3 3 6 6 6 6 6 6 7 13 13 13 13 6 8 8 Average Corruption 6 | . . . . . . . 1 2 2 2 3 4 6 6 6 6 6 5 9 13 13 13 5 6 8 Corruption Purged . | . . . . . . . . . . . . . . . . . . . . . . . . . . Effects 320 | . . . . . . . 3 . 4 17 16 8 6 11 3 13 19 48 17 8 8 73 24 28 14 Message Errors 70 | . . . . . . . 1 . 3 7 3 . . 1 . 6 4 8 4 1 2 15 6 5 4 Matter Fused 60 | . . . . . . . . . . 1 6 3 4 1 1 4 2 6 3 4 . 11 6 4 4 Heat Flow Errors 35 | . . . . . . . . . . . 1 2 1 1 . 1 1 4 2 2 2 10 3 2 3 Energy Discharges 39 | . . . . . . . 1 . . 8 2 3 . 3 . . 3 5 1 1 2 3 2 3 2 Parts Rejected 9 | . . . . . . . . . . . . . . 1 . 1 1 1 . . . 1 2 2 . Data Loss (minor) 28 | . . . . . . . 1 . 1 1 1 . 1 3 2 . . 10 1 . 2 5 . . . Data Loss (major) 10 | . . . . . . . . . . . . . . 1 . 1 1 1 1 . . 4 . 1 . Misfires 10 | . . . . . . . . . . . . . . . . . 1 2 . . . 2 . 4 1 Alerts 1 | . . . . . . . . . . . . . . . . . . . 1 . . . . . . Misdirections 17 | . . . . . . . . . . . . . . . . . . . 1 . . 16 . . . Targeting Errors 33 | . . . . . . . . . . . 3 . . . . . 5 9 2 . . 4 3 7 . Weapon Failures 8 | . . . . . . . . . . . . . . . . . 1 2 1 . . 2 2 . . Overload Shots . | . . . . . . . . . . . . . . . . . . . . . . . . . . Overflow Damage 3319 | . 29 . . 197 165 55 5 . . 15 50 138 . 20 41 . 184 261 118 . 92 146 314 1489 . Projectiles 299 | . . . . . . . 5 . . . . . . . . . . 81 28 . . 1 106 78 . Explosions 848 | . 29 . . 75 13 55 . . . 15 50 59 . 20 41 . 184 24 90 . . 145 48 . . Melee 2172 | . . . . 122 152 . . . . . . 79 . . . . . 156 . . 92 . 160 1411 . Knockbacks 22 | . . . . . . . . . . . . 8 . . . . . . . . . . . 14 . Impact . | . . . . . . . . . . . . . . . . . . . . . . . . . . Kinetic 22 | . . . . . . . . . . . . 8 . . . . . . . . . . . 14 . Secondary . | . . . . . . . . . . . . . . . . . . . . . . . . . . Self-Inflicted Damage 650 | . 38 . . 58 99 22 74 . . . 73 . . 12 56 . 116 53 28 . . 21 . . . Shots 22 | . 1 . . 2 3 1 1 . . . 2 . . 1 2 . 6 1 1 . . 1 . . . Rammed . | . . . . . . . . . . . . . . . . . . . . . . . . . . Targets Rammed . | . . . . . . . . . . . . . . . . . . . . . . . . . . Kicked . | . . . . . . . . . . . . . . . . . . . . . . . . . . Crushed . | . . . . . . . . . . . . . . . . . . . . . . . . . . Highest Temperature 460 | 40 129 . . 16 362 238 200 72 . 32 180 460 183 78 . 157 186 248 379 227 234 246 192 351 207 Average Temperature 79 | 24 43 . . 11 88 79 64 25 . 13 31 161 99 42 . 85 39 50 86 117 109 95 57 101 101 Received Heat Transfer 3855 | . 243 . . 63 522 387 459 96 . 81 180 756 . . 162 . 138 237 81 . . 36 174 183 57 Effects 10 | . . . . . 2 2 . . . . . 4 . . . . . . 1 . . 1 . . . Shutdowns 3 | . . . . . . . . . . . . 2 . . . . . . 1 . . . . . . Energy Bleed 3 | . . . . . 1 . . . . . . 1 . . . . . . . . . 1 . . . Interference 2 | . . . . . . 2 . . . . . . . . . . . . . . . . . . . Matter Decay 1 | . . . . . . . . . . . . 1 . . . . . . . . . . . . . Damage (minor) 1 | . . . . . 1 . . . . . . . . . . . . . . . . . . . . Siege Activations . | . . . . . . . . . . . . . . . . . . . . . . . . . . Robots Corrupted 17 | . 1 . . . . . . . . . . 6 . . . . . 5 . . . 3 2 . . Combat Hostiles 15 | . . . . . . . . . . . . 6 . . . . . 4 . . . 3 2 . . Parts Fried 31 | . 3 . . . 4 . . . . . . 10 . . . . . 10 . . . 2 2 . . Impact Corruptions . | . . . . . . . . . . . . . . . . . . . . . . . . . . Robots Melted 1 | . . . . . . . . . . . . . . . . . . . . . . . 1 . . Combat Hostiles 1 | . . . . . . . . . . . . . . . . . . . . . . . 1 . . Parts Melted 6 | . 1 . . . . . . . . . 1 . . . . . . 2 . . . . 2 . . Heat Transferred 3092 | . 100 . . 50 200 74 592 407 . . . 50 . . . . . 586 175 . . 50 808 . . Parts Sabotaged . | . . . . . . . . . . . . . . . . . . . . . . . . . . Parts Stolen . | . . . . . . . . . . . . . . . . . . . . . . . . . . Parts Stripped . | . . . . . . . . . . . . . . . . . . . . . . . . . . Power Chain Reactions 8 | . 3 . . . 2 . . . . . . 1 . . . . . 1 . . . 1 . . . Missiles Intercepted . | . . . . . . . . . . . . . . . . . . . . . . . . . . Alert | -11 -10 -10 -10 -9 -8 -8 -8 -7 -7 -7 -7 -6 -6 -6 -6 -6 -6 -5 -5 -5 -5 -4 -4 -4 -4 ------- Run | Scr Mat Min Exi Min Mat Gar Mat Fac Was Fac Gar Fac Was Fac Gar Fac Gar Fac Upp Upp Zhi Pro Fac Upp Upp Peak Influence 1058 | 5 157 85 . 120 466 665 717 343 99 466 675 1058 375 452 280 200 724 823 . . . . 639 . . Initial 380 | . 3 6 . . . 230 323 271 50 . 136 338 370 248 55 123 . 380 . . . . 11 . . Average 242 | 1 32 17 . 57 218 452 477 326 45 128 573 345 364 282 167 138 416 288 . . . . 148 . . Maximum Alert Level 3 | . . . . . 2 2 3 1 . 2 2 3 1 2 1 1 3 3 . . . . 2 . . Low Security (%) 52 | 100 100 100 . 100 50 . . . 100 63 3 42 . 30 43 98 18 51 . . . . 76 . . Level 1 24 | . . . . . 35 49 34 99 . 25 9 34 100 45 56 1 33 18 . . . . 5 . . Level 2 18 | . . . . . 13 50 55 . . 11 87 2 . 24 . . 36 13 . . . . 17 . . Level 3 4 | . . . . . . . 10 . . . . 21 . . . . 11 16 . . . . . . . Level 4 . | . . . . . . . . . . . . . . . . . . . . . . . . . . Level 5 . | . . . . . . . . . . . . . . . . . . . . . . . . . . High Security . | . . . . . . . . . . . . . . . . . . . . . . . . . . Max Security . | . . . . . . . . . . . . . . . . . . . . . . . . . . Squads Dispatched 39 | . 1 . . . 5 . 3 . . 5 . 11 . 1 . 1 . 5 . . . . 7 . . Investigation 7 | . 1 . . . 3 . . . . 2 . 1 . . . . . . . . . . . . . Extermination 11 | . . . . . . . . . . 1 . 3 . 1 . 1 . 3 . . . . 2 . . Reinforcement 17 | . . . . . 2 . 3 . . 2 . 6 . . . . . 2 . . . . 2 . . Assault 2 | . . . . . . . . . . . . 1 . . . . . . . . . . 1 . . Garrison 2 | . . . . . . . . . . . . . . . . . . . . . . . 2 . . Intercept . | . . . . . . . . . . . . . . . . . . . . . . . . . . Construction Impeded 6 | . . . . . 1 . 1 . . . . 3 . . . . . 1 . . . . . . . Haulers Reinforced 1 | . . . . . . . . . . 1 . . . . . . . . . . . . . . . Stealth | -11 -10 -10 -10 -9 -8 -8 -8 -7 -7 -7 -7 -6 -6 -6 -6 -6 -6 -5 -5 -5 -5 -4 -4 -4 -4 --------- Run | Scr Mat Min Exi Min Mat Gar Mat Fac Was Fac Gar Fac Was Fac Gar Fac Gar Fac Upp Upp Zhi Pro Fac Upp Upp Distress Signals 22 | . . . . 2 6 . 1 . . 1 . 7 . . . 1 . . . . . 1 2 . 1 Communications Jammed . | . . . . . . . . . . . . . . . . . . . . . . . . . . Distress Signals . | . . . . . . . . . . . . . . . . . . . . . . . . . . Times Spotted 456 | . 11 23 . 8 51 17 19 4 5 19 28 54 11 10 20 4 25 33 9 . . 18 50 28 9 Peak Tracking Total 19 | . 3 19 . 4 5 6 5 3 6 7 8 7 6 4 15 4 7 7 4 . . 5 18 8 7 Tactical Retreats 40 | . 1 . . 1 2 . 1 1 . . 2 8 1 1 2 1 2 4 . . . 2 6 4 1 Traps | -11 -10 -10 -10 -9 -8 -8 -8 -7 -7 -7 -7 -6 -6 -6 -6 -6 -6 -5 -5 -5 -5 -4 -4 -4 -4 ------- Run | Scr Mat Min Exi Min Mat Gar Mat Fac Was Fac Gar Fac Was Fac Gar Fac Gar Fac Upp Upp Zhi Pro Fac Upp Upp Traps Triggered 28 | . 1 . . . 1 6 1 2 . 1 4 2 . 1 2 2 2 2 . . . . 1 . . Indirectly . | . . . . . . . . . . . . . . . . . . . . . . . . . . Trap Hack Attempts . | . . . . . . . . . . . . . . . . . . . . . . . . . . Triggered . | . . . . . . . . . . . . . . . . . . . . . . . . . . Disarmed . | . . . . . . . . . . . . . . . . . . . . . . . . . . Reprogrammed . | . . . . . . . . . . . . . . . . . . . . . . . . . . Reused 1 | . . . . . . . . . . . . . . . . . . . . . . . . 1 . Traps Extracted . | . . . . . . . . . . . . . . . . . . . . . . . . . . Installed 1 | . . . . . . . . . . . . . . . . . . . . . . . . 1 . Triggered 5 | . . . . . . . . . . . . 1 . . . . . . 1 . . 1 . 2 . Machines | -11 -10 -10 -10 -9 -8 -8 -8 -7 -7 -7 -7 -6 -6 -6 -6 -6 -6 -5 -5 -5 -5 -4 -4 -4 -4 ---------- Run | Scr Mat Min Exi Min Mat Gar Mat Fac Was Fac Gar Fac Was Fac Gar Fac Gar Fac Upp Upp Zhi Pro Fac Upp Upp Machines Disabled 27 | . . . . 4 5 2 5 . . 1 2 1 . . 1 . 1 3 . . . . 2 . . Max in Single Turn 4 | . . . . 4 2 1 1 . . . 1 1 . . 1 . 1 1 . . . . 1 . . Garrison Access 1 | . . . . . . . . . . . . . . . . . . . . . . . 1 . . Garrison Relay 6 | . . . . . . 2 . . . . 2 . . . 1 . 1 . . . . . . . . Machines Sabotaged . | . . . . . . . . . . . . . . . . . . . . . . . . . . Garrisons Compromised . | . . . . . . . . . . . . . . . . . . . . . . . . . . Overloaded Fab Kills . | . . . . . . . . . . . . . . . . . . . . . . . . . . Fab Network Shutdowns 1 | . . . . . . . . . . . . 1 . . . . . . . . . . . . . Hacking | -11 -10 -10 -10 -9 -8 -8 -8 -7 -7 -7 -7 -6 -6 -6 -6 -6 -6 -5 -5 -5 -5 -4 -4 -4 -4 --------- Run | Scr Mat Min Exi Min Mat Gar Mat Fac Was Fac Gar Fac Was Fac Gar Fac Gar Fac Upp Upp Zhi Pro Fac Upp Upp Machines Accessed 65 | . 4 . 1 . 10 . . 1 . 8 . 7 . 5 . 4 . 13 . . 6 . 5 1 . Terminals 33 | . 4 . . . 6 . . . . 3 . 5 . 3 . 2 . 8 . . . . 2 . . Fabricators 8 | . . . . . . . . 1 . 2 . 1 . . . 1 . 2 . . . . 1 . . Repair Stations 7 | . . . . . 1 . . . . 1 . 1 . . . . . 2 . . . . 2 . . Recycling Units 1 | . . . . . . . . . . . . . . 1 . . . . . . . . . . . Scanalyzers 4 | . . . . . 2 . . . . 1 . . . . . . . 1 . . . . . . . Garrison Access 4 | . . . . . 1 . . . . 1 . . . 1 . 1 . . . . . . . . . Total Hacks 196 | . 7 . 1 . 30 . . 2 . 19 . 30 . 17 . 15 . 29 . . 28 . 17 1 . Successful 134 | . 1 . 1 . 23 . . . . 11 . 22 . 11 . 12 . 14 . . 28 . 10 1 . Failed 62 | . 6 . . . 7 . . 2 . 8 . 8 . 6 . 3 . 15 . . . . 7 . . Catastrophic 13 | . 1 . . . 3 . . . . 3 . 2 . 1 . . . 2 . . . . 1 . . Database Lockouts . | . . . . . . . . . . . . . . . . . . . . . . . . . . Manual 47 | . 7 . . . 1 . . . . 2 . 16 . 3 . 7 . 7 . . . . 4 . . Terminals 83 | . 7 . . . 11 . . . . 5 . 18 . 9 . 7 . 18 . . . . 8 . . Fabricators 24 | . . . . . . . . 2 . 7 . 4 . . . 5 . 4 . . . . 2 . . Repair Stations 28 | . . . . . 6 . . . . 3 . 8 . . . . . 4 . . . . 7 . . Recycling Units 6 | . . . . . . . . . . . . . . 6 . . . . . . . . . . . Scanalyzers 18 | . . . . . 12 . . . . 3 . . . . . . . 3 . . . . . . . Garrison Access 7 | . . . . . 1 . . . . 1 . . . 2 . 3 . . . . . . . . . Terminal Hacks 56 | . 1 . 1 . 6 . . . . 2 . 6 . 3 . 1 . 4 . . 28 . 3 1 . Record 18 | . . . 1 . . . . . . . . 1 . . . . . . . . 16 . . . . Part Schematic 5 | . . . . . . . . . . . . . . . . . . 1 . . 4 . . . . Robot Analysis 4 | . . . . . . . . . . . . . . . . . . . . . 4 . . . . Prototype ID Bank 4 | . . . . . . . . . . . . . . . . . . . . . 4 . . . . Open Door 1 | . . . . . . . . . . . . . . . . . . . . . . . . 1 . Branch Access Points 3 | . 1 . . . . . . . . . . 1 . . . . . 1 . . . . . . . Machine Index 1 | . . . . . . . . . . . . 1 . . . . . . . . . . . . . Terminal Index 1 | . . . . . . . . . . . . . . . . . . 1 . . . . . . . Garrison Index 1 | . . . . . . . . . . . . . . . . . . . . . . . 1 . . Unreport Threat 6 | . . . . . 2 . . . . 1 . . . 3 . . . . . . . . . . . Locate Traps 4 | . . . . . 1 . . . . . . 1 . . . 1 . . . . . . 1 . . Hauler Manifests 1 | . . . . . 1 . . . . . . . . . . . . . . . . . . . . Zone Layout 7 | . . . . . 2 . . . . 1 . 2 . . . . . 1 . . . . 1 . . Fabricator Hacks 13 | . . . . . . . . . . 4 . 2 . . . 3 . 2 . . . . 2 . . Network Status 1 | . . . . . . . . . . 1 . . . . . . . . . . . . . . . Load Schematic 5 | . . . . . . . . . . 1 . 1 . . . 1 . 1 . . . . 1 . . Build 7 | . . . . . . . . . . 2 . 1 . . . 2 . 1 . . . . 1 . . Repair Station Hacks 19 | . . . . . 6 . . . . 1 . 6 . . . . . 2 . . . . 4 . . Scan Component 11 | . . . . . 3 . . . . 1 . 3 . . . . . 1 . . . . 3 . . Repair 8 | . . . . . 3 . . . . . . 3 . . . . . 1 . . . . 1 . . Recycling Unit Hacks 6 | . . . . . . . . . . . . . . 6 . . . . . . . . . . . Recycle Component 2 | . . . . . . . . . . . . . . 2 . . . . . . . . . . . Process 2 | . . . . . . . . . . . . . . 2 . . . . . . . . . . . Retrieve Matter 2 | . . . . . . . . . . . . . . 2 . . . . . . . . . . . Scanalyzer 15 | . . . . . 10 . . . . 2 . . . . . . . 3 . . . . . . . Insert Component 7 | . . . . . 5 . . . . 1 . . . . . . . 1 . . . . . . . Analyze 8 | . . . . . 5 . . . . 1 . . . . . . . 2 . . . . . . . Garrison Access Hacks 6 | . . . . . 1 . . . . 1 . . . 2 . 2 . . . . . . . . . Unlock Access 4 | . . . . . 1 . . . . 1 . . . 1 . 1 . . . . . . . . . Coupler Status 2 | . . . . . . . . . . . . . . 1 . 1 . . . . . . . . . Unauthorized Hacks 19 | . . . . . . . . . . 1 . 8 . . . 6 . 3 . . . . 1 . . Terminals 14 | . . . . . . . . . . . . 6 . . . 4 . 3 . . . . 1 . . Track 4 | . . . . . . . . . . . . 1 . . . 1 . 2 . . . . . . . Botnet 5 | . . . . . . . . . . . . 2 . . . 1 . 1 . . . . 1 . . Disrupt 2 | . . . . . . . . . . . . 1 . . . 1 . . . . . . . . . Operators 3 | . . . . . . . . . . . . 2 . . . 1 . . . . . . . . . Fabricators 4 | . . . . . . . . . . 1 . 2 . . . 1 . . . . . . . . . Prioritize 1 | . . . . . . . . . . . . 1 . . . . . . . . . . . . . Siphon 3 | . . . . . . . . . . 1 . 1 . . . 1 . . . . . . . . . Repair Stations . | . . . . . . . . . . . . . . . . . . . . . . . . . . Recycling Units . | . . . . . . . . . . . . . . . . . . . . . . . . . . Scanalyzers . | . . . . . . . . . . . . . . . . . . . . . . . . . . Garrison Access 1 | . . . . . . . . . . . . . . . . 1 . . . . . . . . . Watchers 1 | . . . . . . . . . . . . . . . . 1 . . . . . . . . . Data Cores Recovered . | . . . . . . . . . . . . . . . . . . . . . . . . . . Used . | . . . . . . . . . . . . . . . . . . . . . . . . . . Hacking Detections 50 | . 4 . . . 8 . . 1 . 7 . 5 . 4 . 4 . 12 . . . . 5 . . Full Trace Events 6 | . 1 . . . 2 . . . . 2 . 1 . . . . . . . . . . . . . Feedback Events 1 | . . . . . . . . . . 1 . . . . . . . . . . . . . . . Corruption 1 | . . . . . . . . . . 1 . . . . . . . . . . . . . . . Feedback Blocked . | . . . . . . . . . . . . . . . . . . . . . . . . . . Robot Schematics Acquired . | . . . . . . . . . . . . . . . . . . . . . . . . . . Robots Built . | . . . . . . . . . . . . . . . . . . . . . . . . . . Matter . | . . . . . . . . . . . . . . . . . . . . . . . . . . Time . | . . . . . . . . . . . . . . . . . . . . . . . . . . Total Robot Build Rating . | . . . . . . . . . . . . . . . . . . . . . . . . . . Part Schematics Acquired 11 | . . . . . 4 . . . . 1 . . . . . . . 2 . . 4 . . . . Parts Built 12 | . . . . . . . . . . 4 . 2 . . . 4 . . . . . . 2 . . Matter 1170 | . . . . . . . . . . 380 . 126 . . . 284 . 190 . . . . 190 . . Time 468 | . . . . . . . . . . 190 . 42 . . . 94 . 95 . . . . 47 . . Total Part Build Rating 58 | . . . . . . . . . . 20 . 8 . . . 20 . . . . . . 10 . . Parts Repaired 8 | . . . . . 3 . . . . . . 3 . . . . . 1 . . . . 1 . . Time 325 | . . . . . 114 . . . . . . 161 . . . . . 25 . . . . 25 . . Parts Recycled 2 | . . . . . . . . . . . . . . 2 . . . . . . . . . . . Recycled Matter 168 | . . . . . . . . . . . . . . 168 . . . . . . . . . . . Retrieved Matter 168 | . . . . . . . . . . . . . . 168 . . . . . . . . . . . Retrieved Components . | . . . . . . . . . . . . . . . . . . . . . . . . . . Parts Scanalyzed 7 | . . . . . 5 . . . . 1 . . . . . . . 1 . . . . . . . Part Schematics Acquired 6 | . . . . . 4 . . . . 1 . . . . . . . 1 . . . . . . . Parts Damaged . | . . . . . . . . . . . . . . . . . . . . . . . . . . Bothacking | -11 -10 -10 -10 -9 -8 -8 -8 -7 -7 -7 -7 -6 -6 -6 -6 -6 -6 -5 -5 -5 -5 -4 -4 -4 -4 ------------ Run | Scr Mat Min Exi Min Mat Gar Mat Fac Was Fac Gar Fac Was Fac Gar Fac Gar Fac Upp Upp Zhi Pro Fac Upp Upp Used RIF Installer 3 | . . . . . . 1 . . . . 1 . . . 1 . . . . . . . . . . Patrol Navigation 1 | . . . . . . . . . . . . . . . 1 . . . . . . . . . . Program Shield 1 | . . . . . . . . . . . 1 . . . . . . . . . . . . . . Robots Hacked 38 | . . . . . . . . . . 1 5 11 . . . 1 . 14 . . . . 3 3 . Non-combat 23 | . . . . . . . . . . 1 . 8 . . . 1 . 10 . . . . 3 . . Combat 15 | . . . . . . . . . . . 5 3 . . . . . 4 . . . . . 3 . Robot Hacks Applied 51 | . . . . . . . . . . 1 5 16 . . . 1 . 21 . . . . 4 3 . parse_system 2 | . . . . . . . . . . . . 1 . . . . . 1 . . . . . . . no_distress 4 | . . . . . . . . . . . . 1 . . . . . 3 . . . . . . . generate_echo 1 | . . . . . . . . . . . . 1 . . . . . . . . . . . . . find_chute 2 | . . . . . . . . . . . . 1 . . . . . 1 . . . . . . . map_walls 2 | . . . . . . . . . . . . . . . . 1 . 1 . . . . . . . find_fabricator 2 | . . . . . . . . . . . . . . . . . . 2 . . . . . . . drop_inventory 3 | . . . . . . . . . . . . 1 . . . . . 1 . . . . 1 . . find_recycling 1 | . . . . . . . . . . . . 1 . . . . . . . . . . . . . find_station 3 | . . . . . . . . . . . . . . . . . . 2 . . . . 1 . . release_backups 1 | . . . . . . . . . . . . . . . . . . . . . . . 1 . . purge_threat 5 | . . . . . . . . . . . . 2 . . . . . 3 . . . . . . . block_reporting 2 | . . . . . . . . . . . . . . . . . . 1 . . . . 1 . . summon_haulers 1 | . . . . . . . . . . . . 1 . . . . . . . . . . . . . map_route 1 | . . . . . . . . . . 1 . . . . . . . . . . . . . . . spike_heat 1 | . . . . . . . . . . . 1 . . . . . . . . . . . . . . overload_power 1 | . . . . . . . . . . . . . . . . . . . . . . . . 1 . overwrite_iff 2 | . . . . . . . . . . . . . . . . . . 2 . . . . . . . formatsys_low 5 | . . . . . . . . . . . . 3 . . . . . 2 . . . . . . . formatsys_high 12 | . . . . . . . . . . . 4 4 . . . . . 2 . . . . . 2 . Relay Couplers Released 27 | . . . . . . 7 . . . . 9 . . . 5 . 4 . . . . . 2 . . Machine Destruction 27 | . . . . . . 7 . . . . 9 . . . 5 . 4 . . . . . 2 . . Attached 15 | . . . . . . . . . 1 . 3 3 . . 4 . 1 1 . . . 1 1 . . Robots Rewired 9 | . . . . . . . . . . . 9 . . . . . . . . . . . . . . Allies Hacked . | . . . . . . . . . . . . . . . . . . . . . . . . . . Hacks Repelled . | . . . . . . . . . . . . . . . . . . . . . . . . . . Allies | -11 -10 -10 -10 -9 -8 -8 -8 -7 -7 -7 -7 -6 -6 -6 -6 -6 -6 -5 -5 -5 -5 -4 -4 -4 -4 -------- Run | Scr Mat Min Exi Min Mat Gar Mat Fac Was Fac Gar Fac Was Fac Gar Fac Gar Fac Upp Upp Zhi Pro Fac Upp Upp Total Allies 47 | . . . . . . . . . 19 . 13 7 . . . . . 6 . . . . . 2 . Largest Group 19 | . . . . . . . . . 19 12 8 7 . . . . . 2 . . . . . 2 . Highest-Rated Group 487 | . . . . . . . . . 487 327 138 188 . . . . . 76 . . . . . 24 . Highest-Rated Ally 47 | . . . . . . . . . 35 35 38 38 . . . . . 47 . . . . . 12 . Total Orders 1 | . . . . . . . . . . . 1 . . . . . . . . . . . . . . STAY 1 | . . . . . . . . . . . 1 . . . . . . . . . . . . . . Ally Attacks 262 | . . . . . . . . . 96 69 28 58 . . . . . 8 . . . . . 3 . Total Damage 6296 | . . . . . . . . . 3716 871 348 1159 . . . . . 161 . . . . . 41 . Kills 34 | . . . . . . . . . 10 13 2 8 . . . . . . . . . . . 1 . Allies Corrupted 1 | . . . . . . . . . . . 1 . . . . . . . . . . . . . . Allies Melted . | . . . . . . . . . . . . . . . . . . . . . . . . . . Intel | -11 -10 -10 -10 -9 -8 -8 -8 -7 -7 -7 -7 -6 -6 -6 -6 -6 -6 -5 -5 -5 -5 -4 -4 -4 -4 ------- Run | Scr Mat Min Exi Min Mat Gar Mat Fac Was Fac Gar Fac Was Fac Gar Fac Gar Fac Upp Upp Zhi Pro Fac Upp Upp Robot Analysis Total 4 | . . . . . . . . . . . . . . . . . . . . . 4 . . . . Derelict Logs Recovered 11 | . . 2 . 2 . . . . . . . . . . . . . . 1 . . 3 . 2 1 Drone Launches . | . . . . . . . . . . . . . . . . . . . . . . . . . . Drone Recoveries . | . . . . . . . . . . . . . . . . . . . . . . . . . . Exploration | -11 -10 -10 -10 -9 -8 -8 -8 -7 -7 -7 -7 -6 -6 -6 -6 -6 -6 -5 -5 -5 -5 -4 -4 -4 -4 ------------- Run | Scr Mat Min Exi Min Mat Gar Mat Fac Was Fac Gar Fac Was Fac Gar Fac Gar Fac Upp Upp Zhi Pro Fac Upp Upp Turns Passed 19627 | 86 1054 731 693 1024 2480 947 837 401 423 1299 920 1187 271 320 147 500 411 1625 370 178 176 1380 1050 679 438 Spaces Moved 13645 | 58 507 413 364 475 979 380 307 195 315 951 761 945 316 478 227 393 341 1580 476 303 170 1060 616 653 382 Core 367 | 2 . . . . . . . . . . . . 212 43 . . . . . . . . 49 . 61 Treads 3606 | . 472 413 364 475 979 380 307 195 . . . . . . . . . . . . . . . 21 . Legs 1400 | . . . . . . . . . . . . . . . . . . . . . 61 1046 293 . . Wheels 383 | 56 35 . . . . . . . . . . . . 84 . 169 . . . . . . . 34 5 Hover 7235 | . . . . . . . . . 315 951 761 945 104 . . 148 341 1580 476 303 109 14 274 598 316 Flight 654 | . . . . . . . . . . . . . . 351 227 76 . . . . . . . . . Fastest Speed 28 | 50 90 160 160 200 200 193 173 151 92 63 68 68 50 34 34 40 68 55 58 58 58 120 28 28 50 Average Speed 112 | 88 167 162 183 200 206 207 192 170 121 126 69 78 58 54 35 72 68 72 58 58 80 121 108 58 110 Slowest Speed 285 | 100 180 180 200 200 210 230 193 171 162 162 138 216 80 150 40 100 68 220 58 58 150 250 250 180 285 Overloaded Moves . | . . . . . . . . . . . . . . . . . . . . . . . . . . Propulsion Burnouts . | . . . . . . . . . . . . . . . . . . . . . . . . . . Robots Hopped 1 | . . . . . . . . . . . . . . . 1 . . . . . . . . . . Cave-ins Triggered . | . . . . . . . . . . . . . . . . . . . . . . . . . . Teleports 1 | . . . . . . . . . . . . . . . . . . . . . . . 1 . . Exploration Rate (%) 50 | 4 75 88 68 96 78 49 29 4 91 24 62 19 78 13 42 11 48 36 55 40 62 92 19 69 57 Regions Visited 25 Branch Regions 9 Pre-discovered Areas 7 | . . 1 1 . . . . . . . . . . . . . . . . . 3 1 . 1 . Known Exits Taken 8 | . 1 . . 1 1 . . . . 1 . . . 1 . 1 . 1 . . . . 1 . . Unknown Exits Taken 9 | 1 . 1 1 . . . 1 . . . . . . . . . . . 1 1 1 1 . 1 . Scrap Searched 11 | . . 1 . 2 . . . . . . . . . . . . . . 2 3 . 3 . . . Spaces Dug 195 | . . 19 . 26 6 7 . 1 . 1 21 7 . 11 19 6 54 . . . . . 5 12 . Terrain Destroyed 1029 | . 14 40 . 70 63 21 81 2 . 28 67 49 . 48 28 6 146 9 115 . . 138 71 31 2 Melee 34 | . . . . 3 . . . . . 1 . 7 . . . 6 . . . . . . 5 12 . Projectile 69 | . . . . . 4 4 5 2 . . 3 13 . . . . . 6 2 . . . 9 19 2 AOE 926 | . 14 40 . 67 59 17 76 . . 27 64 29 . 48 28 . 146 3 113 . . 138 57 . . Terrain Rammed . | . . . . . . . . . . . . . . . . . . . . . . . . . . Walls Destroyed . | . . . . . . . . . . . . . . . . . . . . . . . . . . Machines Disabled . | . . . . . . . . . . . . . . . . . . . . . . . . . . Actions | -11 -10 -10 -10 -9 -8 -8 -8 -7 -7 -7 -7 -6 -6 -6 -6 -6 -6 -5 -5 -5 -5 -4 -4 -4 -4 --------- Run | Scr Mat Min Exi Min Mat Gar Mat Fac Was Fac Gar Fac Was Fac Gar Fac Gar Fac Upp Upp Zhi Pro Fac Upp Upp Total 16749 | 77 625 460 393 525 1292 467 490 245 364 1034 1092 1286 401 528 286 580 449 1901 531 304 202 1108 878 838 393 Wait 1108 | . 54 15 . 20 121 15 81 20 10 30 65 162 75 . 19 107 41 101 5 . . . 114 53 . Move 13621 | 57 506 412 363 474 978 379 306 195 314 950 760 945 315 477 224 393 340 1579 475 302 169 1059 615 652 382 Hop 1 | . . . . . . . . . . . . . . . 1 . . . . . . . . . . Pick Up 202 | 7 8 6 21 2 27 3 14 6 8 9 9 9 3 10 3 6 7 20 1 1 5 . 10 6 1 Fast Attach 148 | 7 1 . 1 . 8 . 8 3 5 3 1 4 3 9 6 13 4 24 4 1 7 1 19 16 . Attach 93 | . 2 . . . 8 1 1 2 3 3 4 16 . 8 4 3 1 11 4 . 1 3 12 5 1 Detach 29 | . . . . . 1 . . 1 2 . . 4 1 4 5 1 . . . . 1 2 5 2 . Swap 149 | . 8 3 2 3 14 8 8 2 2 11 13 16 1 1 . 1 3 18 9 . 4 7 10 5 . Drop 195 | . 3 6 6 1 26 3 23 3 20 11 8 7 3 9 4 7 7 20 3 . 10 1 6 6 2 Fire 755 | 6 43 18 . 10 74 46 49 13 . 16 59 81 . 10 3 . 37 106 28 . . 35 58 58 5 Melee 212 | . . . . 15 35 . . . . 1 8 40 . . 2 13 9 18 1 . 5 . 29 34 2 Ram . | . . . . . . . . . . . . . . . . . . . . . . . . . . Kick . | . . . . . . . . . . . . . . . . . . . . . . . . . . Crush . | . . . . . . . . . . . . . . . . . . . . . . . . . . Escape Stasis 105 | . . . . . . 12 . . . . 42 . . . 15 36 . . . . . . . . . Rewire 130 | . . . . . . . . . . . 123 2 . . . . . 4 1 . . . . . . Trap 1 | . . . . . . . . . . . . . . . . . . . . . . . . 1 . Miscellaneous . | . . . . . . . . . . . . . . . . . . . . . . . . . . Route ------- -11/Scrapyard -10/Materials (discovered 4 exits: [*Mat x3] / *Min) -10/Mines (discovered 3 exits: [*Mat x2] / *Exi) -10/Exiles -9/Mines (discovered 2 exits: *Mat x2) -8/Materials (discovered 2 exits: *Fac / Gar) -8/Garrison (discovered 3 exits: [*Mat x3]) -8/Materials -7/Factory -7/Waste -7/Factory (discovered 2 exits: [Low] / Gar) -7/Garrison -6/Factory (discovered 2 exits: Low x2) -6/Waste -6/Factory -6/Garrison -6/Factory -6/Garrison -5/Factory (discovered 4 exits: *Fac x2 / *Upp x2) -5/Upper Caves -5/Upper Caves -5/Zhirov -4/Proximity Caves -4/Factory (discovered 2 exits: *Upp / Ext) -4/Upper Caves -4/Upper Caves History --------- Turn | Location | Event 16 | -11/Scrapyard | Discovered new exit (range 16) 87 | -11/Scrapyard | Entered Materials 303 | -10/Materials | Build established: Mutant 386 | -10/Materials | Discovered new exit (range 16) 658 | -10/Materials | Discovered new exit (range 10) 914 | -10/Materials | Discovered new exit (range 15) 1022 | -10/Materials | Identified exit to Mines 1141 | -10/Materials | Entered Mines 1142 | -10/Mines | Assembled infested the area 1152 | -10/Mines | Core integrity fell below 50% 1155 | -10/Mines | Met 8R-AWN 1174 | -10/Mines | Destroyed 16 combat bots 1295 | -10/Mines | A weapon hastily lodged in a ceiling crevice suddenly fell to the ground 1381 | -10/Mines | Discovered new exit (range 11) 1432 | -10/Mines | Learned 2 Materials zone layouts 1610 | -10/Mines | Discovered new exit (range 7) 1710 | -10/Mines | Discovered new exit (range 5) 1802 | -10/Mines | Learned location of Zion (-6) 1872 | -10/Mines | Entered Exiles 1932 | -10/Exiles | Welcomed by 8R-AWN 1955 | -10/Exiles | Met EX-HEX 2038 | -10/Exiles | Met EX-DEC 2309 | -10/Exiles | Met EX-BIN 2404 | -10/Exiles | Build established: Hauler-Mutant 2509 | -10/Exiles | Discovered new exit (range 14) 2565 | -10/Exiles | Entered Mines 2590 | -9/Mines | Met a Derelict bent on vengeance 2677 | -9/Mines | Learned Materials emergency access door positions 2858 | -9/Mines | Excavation squad dispatched 2858 | -9/Mines | A large section of the Mines collapsed 3108 | -9/Mines | Excavation squad dispatched 3353 | -9/Mines | Discovered new exit (range 12) 3419 | -9/Mines | Identified exit to Materials 3589 | -9/Mines | Entered Materials 3589 | -8/Materials | Evolved 4 slots: Propulsion x1, Utility x3 3946 | -8/Materials | Identified exit to Garrison 5275 | -8/Materials | Discovered new exit (range 7) 5346 | -8/Materials | Repaired Lgt. Nuclear Core 5385 | -8/Materials | Repaired Arm. Treads 5425 | -8/Materials | Repaired Imp. Light Armor Plating 6069 | -8/Materials | Entered Garrison 6120 | -8/Garrison | Triggered checkpoint 6125 | -8/Garrison | Triggered checkpoint 6260 | -8/Garrison | Discovered new exit (range 10) 6435 | -8/Garrison | Discovered new exit (range 12) 6475 | -8/Garrison | Installed Relay Interface Framework 6526 | -8/Garrison | Triggered checkpoint 6602 | -8/Garrison | Garrison Relay disabled 6688 | -8/Garrison | Triggered checkpoint 6776 | -8/Garrison | Discovered new exit (range 11) 6892 | -8/Garrison | Triggered checkpoint 6920 | -8/Garrison | Garrison Relay disabled 7016 | -8/Garrison | Entered Materials 7678 | -8/Materials | Discovered new exit (range 13) 7696 | -8/Materials | Core integrity fell below 50% 7853 | -8/Materials | Entered Factory 7853 | -7/Factory | Evolved 2 slots: Propulsion x1, Utility x1 8254 | -7/Factory | Sucked down chute 8254 | -7/Factory | Entered Waste 8291 | -7/Waste | Spotted C-40 Crusher 8304 | -7/Waste | Spotted C-40 Crusher 8306 | -7/Waste | Spotted C-40 Crusher 8329 | -7/Waste | Spotted C-40 Crusher 8330 | -7/Waste | Spotted C-40 Crusher 8351 | -7/Waste | Spotted C-40 Crusher 8369 | -7/Waste | Warlord forces began an assault 8374 | -7/Waste | Allies destroyed C-40 Crusher 8528 | -7/Waste | Found Damper Plating 8579 | -7/Waste | Discovered new exit (range 13) 8629 | -7/Waste | Found Broken Powered Armor 8648 | -7/Waste | Identified exit to Factory 8677 | -7/Waste | Entered Factory 8677 | -7/Factory | Accompanied by 12 allies 9709 | -7/Factory | Discovered new exit (range 44) 9756 | -7/Factory | Fabricated Cmb. Airjet? 9904 | -7/Factory | Fabricated Cmb. Airjet? 9972 | -7/Factory | Identified exit to Garrison 9976 | -7/Factory | Entered Garrison 9976 | -7/Garrison | Accompanied by 1 ally 9980 | -7/Garrison | Expanded RIF knowledge: Program Shield 10000 | -7/Garrison | Triggered checkpoint 10015 | -7/Garrison | Garrison Relay disabled 10085 | -7/Garrison | Triggered checkpoint 10085 | -7/Garrison | Triggered checkpoint 10118 | -7/Garrison | Destroyed 9 combat bots 10174 | -7/Garrison | Triggered checkpoint 10181 | -7/Garrison | Triggered checkpoint 10286 | -7/Garrison | Build established: Bothacker-Mutant 10325 | -7/Garrison | Garrison Relay disabled 10328 | -7/Garrison | Triggered checkpoint 10606 | -7/Garrison | Triggered checkpoint 10606 | -7/Garrison | Discovered new exit (range 7) 10616 | -7/Garrison | Identified exit to Factory 10682 | -7/Garrison | Spotted B-75 Beast 10682 | -7/Garrison | Spotted B-75 Beast 10896 | -7/Garrison | Entered Factory 10896 | -6/Factory | Accompanied by 4 allies 10896 | -6/Factory | Evolved 2 slots: Utility x2 11201 | -6/Factory | Identified exit to Lower Caves 11218 | -6/Factory | Repaired Broken Powered Armor? 11292 | -6/Factory | Repaired Remote Datajack 11350 | -6/Factory | Repaired Cmb. Gravmag System 11440 | -6/Factory | Fabricated Powered Armor? 11613 | -6/Factory | Lost 3 parts (1p1u1w) 11731 | -6/Factory | Build established: Hauler-Mutant 11800 | -6/Factory | Local fabrication network quarantined 11838 | -6/Factory | Lost 7 parts (1p2n2u2w) 11946 | -6/Factory | First assault squad dispatched 11967 | -6/Factory | Lost 3 parts (2u1w) 12083 | -6/Factory | Manually triggered Chute Trap 12083 | -6/Factory | Sucked down chute 12083 | -6/Factory | Entered Waste 12103 | -6/Waste | Spotted C-40 Crusher 12143 | -6/Waste | Spotted C-40 Crusher 12172 | -6/Waste | Spotted C-40 Crusher 12174 | -6/Waste | Spotted C-40 Crusher 12174 | -6/Waste | Spotted C-40 Crusher 12187 | -6/Waste | Crushed by Compactor (1 part destroyed, 2 dropped) 12268 | -6/Waste | Build established: Mutant 12300 | -6/Waste | Crushed by Compactor (1 part destroyed, 1 dropped) 12302 | -6/Waste | Crushed by Compactor (1 part destroyed, 1 dropped) 12307 | -6/Waste | Spotted C-40 Crusher 12341 | -6/Waste | Discovered new exit (range 11) 12347 | -6/Waste | Found Prototype Hackware 12354 | -6/Waste | Entered Factory 12394 | -6/Factory | Identified Exp. Hacking Suite 12672 | -6/Factory | Identified exit to Garrison 12674 | -6/Factory | Entered Garrison 12676 | -6/Garrison | Expanded RIF knowledge: Watcher Feeds 12683 | -6/Garrison | Build established: Hacker-Mutant 12710 | -6/Garrison | Triggered checkpoint 12742 | -6/Garrison | Spotted B-75 Beast 12764 | -6/Garrison | Triggered checkpoint 12764 | -6/Garrison | Garrison Relay disabled 12773 | -6/Garrison | Core integrity fell below 50% 12817 | -6/Garrison | Discovered new exit (range 10) 12821 | -6/Garrison | Entered Factory 12847 | -6/Factory | Lost 6 parts (1p3n2u) 13030 | -6/Factory | Fabricated Cmb. Airjet? 13138 | -6/Factory | Fabricated Cmb. Airjet (x2) 13321 | -6/Factory | Identified exit to Garrison 13321 | -6/Factory | Entered Garrison 13324 | -6/Garrison | Build established: Bothacker-Mutant 13344 | -6/Garrison | Triggered checkpoint 13356 | -6/Garrison | Core integrity fell below 20% 13371 | -6/Garrison | Garrison Relay disabled 13476 | -6/Garrison | Triggered checkpoint 13526 | -6/Garrison | Triggered checkpoint 13543 | -6/Garrison | Triggered checkpoint 13584 | -6/Garrison | Lost 3 parts (1u2w) 13587 | -6/Garrison | Destroyed 12 combat bots 13626 | -6/Garrison | Discovered new exit (range 11) 13712 | -6/Garrison | Triggered checkpoint 13732 | -6/Garrison | Entered Factory 13732 | -5/Factory | Evolved 2 slots: Power x1, Utility x1 14175 | -5/Factory | Lost 9 parts (1p3n2u3w) 14582 | -5/Factory | Discovered new exit (range 15) 14624 | -5/Factory | Discovered new exit (range 4) 14636 | -5/Factory | Identified exit to Upper Caves 14779 | -5/Factory | Build established: Scavenger-Mutant 14876 | -5/Factory | Found Mni. Smartbomb Launcher 15173 | -5/Factory | Repaired Cmb. Airjet 15357 | -5/Factory | Entered Upper Caves 15570 | -5/Upper Caves | System corruption reached 10% 15613 | -5/Upper Caves | Learned 8 Factory zone layouts 15616 | -5/Upper Caves | Lost 5 parts (1n2u2w) 15692 | -5/Upper Caves | Build established: Hacker-Mutant 15713 | -5/Upper Caves | Discovered new exit (range 3) 15727 | -5/Upper Caves | Entered another Upper Caves area 15860 | -5/Upper Caves | Discovered new exit (range 13) 15905 | -5/Upper Caves | Entered Zhirov 15905 | -5/Zhirov | Discovered new exit (range 3) 15916 | -5/Zhirov | Met Zhirov 15928 | -5/Zhirov | Learned location of Quarantine (-2) 15928 | -5/Zhirov | Learned location of Testing (-3) 15928 | -5/Zhirov | Learned location of Command (-1) 15939 | -5/Zhirov | Zhirov requested help retrieving the SGEMP Prototype 15951 | -5/Zhirov | Found Alien Artifact 15951 | -5/Zhirov | Identified Integrated Reactor 15951 | -5/Zhirov | Installed Integrated Reactor, increased core energy generation (+10) 15962 | -5/Zhirov | Found Alien Artifact 16081 | -5/Zhirov | Entered Proximity Caves 16105 | -4/Proximity Caves | Learned Research terminal intel 16152 | -4/Proximity Caves | Learned location of Armory (-3) 16338 | -4/Proximity Caves | Learned 4 Research zone layouts 16398 | -4/Proximity Caves | Attracted the attention of an 0b10 checkpoint 16639 | -4/Proximity Caves | Spotted B-86 Titan 17416 | -4/Proximity Caves | Discovered new exit (range 13) 17461 | -4/Proximity Caves | Entered Factory 17461 | -4/Factory | Evolved 2 slots: Utility x2 17462 | -4/Factory | Identified exit to Upper Caves 17462 | -4/Factory | Identified exit to Extension 17923 | -4/Factory | Repaired Cmb. Airjet 18096 | -4/Factory | Fabricated Cmb. Airjet? 18181 | -4/Factory | Garrison activated, responded to threat 18224 | -4/Factory | Lost 3 parts (1p1u1w) 18289 | -4/Factory | Lost 3 parts (2p1u) 18314 | -4/Factory | Destroyed 12 combat bots 18414 | -4/Factory | Identified Transdimensional Reconstructor 18414 | -4/Factory | Warped through subspace 18415 | -4/Factory | Core integrity fell below 50% 18468 | -4/Factory | Lost 14 parts (1p5n4u4w) 18511 | -4/Factory | Entered Upper Caves 18585 | -4/Upper Caves | P-70 Sage assimilated allied Virus 7b 18620 | -4/Upper Caves | Attracted the attention of an 0b10 checkpoint 18705 | -4/Upper Caves | Lost 3 parts (1n2u) 18711 | -4/Upper Caves | Learned Research stockpile data 18900 | -4/Upper Caves | Lost 3 parts (1p1n1w) 19127 | -4/Upper Caves | Lost 4 parts (1p2n1u) 19179 | -4/Upper Caves | Discovered new exit (range 6) 19190 | -4/Upper Caves | Entered another Upper Caves area 19191 | -4/Upper Caves | Encountered a Warlord checkpoint 19208 | -4/Upper Caves | Learned Research security intel 19381 | -4/Upper Caves | Build established: Scavenger-Mutant 19472 | -4/Upper Caves | Core integrity fell below 20% 19554 | -4/Upper Caves | Attracted the attention of an 0b10 base 19628 | -4/Upper Caves | Destroyed by S-27 Virus with Autogun Last Messages --------------- 19532_ Sneak attack on M-30 Cleanser. 19549_ M-30 Cleanser sends out distress signal. 19575_ Imp. Linear Gravjet destroyed. 19575_ Hardcell Cannon destroyed. 19576_ R3MLSWQ1HGWUL14B63I%0LI 19576_ Adv. Force Field destroyed. 19578_ Adv. Trap Extractor destroyed. 19580_ Imp. Linear Gravjet destroyed. 19586_ S-27 Virus destroyed. 19590_ Acquired 28 matter. 19594_ VTOL Module fries itself beyond repair. 19597_ Autogun fries itself beyond repair. 19597_ Dropped Imp. Remote Force Field. 19597_ Antigrav System destroyed. 19597_ Dropped Imp. Matter Compressor. 19597_ Wheel destroyed. 19597_ Mak. Sword destroyed. 19598_ Hacking Suite destroyed. 19614_ System corrupted: Heat flow error (+238). 19619_ Com. Battery destroyed. Map ----- +----------------------------------------------------+ | ?????????????????????????????????????????????????? | | ?????????????????????????????????????????????????? | | ?????????????????????????????????????????????????? | | ?????????????????????????????????????????????????? | | ?#####??????????######??######???????????????????? | | ## ##?????????# ### ##??????????????????? | | # #??????????# #??????????????????? | | #?####????### ####??????????????????? | | #?## #???## ##?????????????????????? | | ### ##### ###??????????????????????? | | #????????????????????????? | | ## #### #????????????????????????? | | #### ##?## ##???????????????????????? | | ###### ## ##?# ##??????????????????????? | | ##??## ### ### ##?????????????????????? | | ##??## #?????????????????????? | | ##### # #?????????????????????? | | " ####+######s #?????????????????????? | | #??" ????# #?????? ?????????????? | | ##### #??" ??# #????? ???????????? | | & ##???# #??" "# #???? ???????????? | | # ##???# # + #???? ????????????? | | # #???# # # #??? ?????????????? | | # #?? + ??# #??? #??????????????? | | #?# ### # ????# #?## #???????????????? | | #?# #??# # ??????#@ ## #???????????????? | | ######???# #""""?????# # ##??????????????? | | #####?# ######+#### ##?????????????? | | ### ##????????????? | | ## ##???????????? | | ### ## #???????????? | | ######## #???????????? | | ### #?????## h ##???????????? | | #?# ##?????# ###????????????? | | ??# ## ##?????## ### ##??????????????? | | #??# ## ##??????# ##??###???????????????? | | ???## ### ##??????## ;#????????????????????? | | ????# #?#######???# #????????????????????? | | ##??###???## ##### #####????????????????? | | ##??????## ## ##???????????????? | | #?##??## ########????????? | | ## #??# ## ???????? | | ##?# ### ###### ???????? | | #####?# ####???## ## ???????? | | #????# ##??????# ##? #?? ??????? | | ##???####??????## #### ##? ## ?????? | | # #????????####?# #???###?# ?????? | | ## ###??????### #### #??????# ??????? | | ?# ##???????## #?# #?????# ????????? | | ?# #####????# #?## ####?# #??????????? | +----------------------------------------------------+ Best States ------------- Heat Dissipation 74 Coolant Potential 80 Energy Generation 57 Energy Capacity 825 Matter Stores 600 Matter Capacity 600 Sight Range 16 Robot Scan Range 16 Terrain Scan Density 10 ECM Strength 3 Power Amplification 30 Corruption Prevention 20 Armor Coverage 1200 Resistance: KI 20 Resistance: TH 20 Resistance: EM 90 Utility Shielding 66 Point Defense Rating 80 Weapon Cycling 15 Evasion (%) 63 Target Analysis 6 Recoil Reduction 4 Energy Filtering 30 Particle Charging 20 Offensive Hacking 30 Defensive Hacking 14 Relay Coupler Types 106 Relay Coupler Value 3 Item Schematics ----------------- Cmb. Airjet | -8/Materials | Scanalyzed Hacking Suite | -8/Materials | Scanalyzed Hcp. Storage Unit | -8/Materials | Scanalyzed Mak. Sword | -8/Materials | Scanalyzed Powered Armor | -7/Factory | Scanalyzed Lrn. Proton Cannon | -5/Factory | Scanalyzed HERF Cannon | -5/Factory | Hacked Assault Drone Bay | -5/Zhirov | Free Exp. Heat Sink | -5/Zhirov | Free Exp. Optical Array | -5/Zhirov | Free Imp. Arc Thrower | -5/Zhirov | Free Robot Schematics ------------------ None Fabricated ------------ Cmb. Airjet | x2 | -7/Factory Cmb. Airjet | x2 | -7/Factory Powered Armor | x2 | -6/Factory Cmb. Airjet | x2 | -6/Factory Cmb. Airjet | x2 | -6/Factory Cmb. Airjet | x2 | -4/Factory Alien Tech Used ----------------- Integrated Reactor Transdimensional Reconstructor Achievements -------------- None Challenges ------------ None Game ------ Seed ChargeStructuralFrame Manual? 0 Play Time 04:25:16 Cumulative 282.0 hours Start 2021.01.30 @ 14:26:52 End 2021.04.03 @ 14:09:20 Sessions 13 Manual Loads 0 Difficulty Rogue Special Mode None Game No. 110 Rogue 110 Adventurer 0 Explorer 0 Win Type - Total 9 Types 7/0/1/1/0/0/0/0/0 Lore% 61 Gallery% 86 Achievement% 66 Wizard Run 0 Options --------- ASCII 0 Keyboard 0 Movement Numpad Keybinds 0 Fullscreen 1 Font 18/SmallcapsGlow Map View 76x50 Tactical HUD 1 Map Filters NONE Filters NONE Steam 1 RUN: 2d80b119-b2ed-4fdc-87fd-15a18883a90f